bitfinex-derivatives/quotes_ETHF0:USTF0_20241005
["timestamp","ask_amount","ask_price","bid_price","bid_amount"]
[1728111624263,0.28859,2425.4,2425.3,0.786]
[1728111624577,0.28859,2425.4,2425.3,3.42958154]
[1728111625572,0.28858,2425.5,2425.4,0.28859]
[1728111625773,0.28858,2425.5,2425.4,2.93217154]
[1728111625974,0.28858,2425.5,2425.4,3.05968154]
[1728111626174,0.28858,2425.5,2425.4,3.34827154]
[1728111626871,0.28858,2425.5,2425.4,3.05968154]
[1728111627375,0.28858,2425.5,2425.4,3.06032275]
[1728111630576,1.285,2425.6,2425.4,3.06032275]
[1728111630782,1.57358,2425.6,2425.4,0.70469]
[1728111630976,1.57358,2425.6,2425.5,1.4949518]
[1728111631177,1.57358,2425.6,2425.5,2.64491473]
[1728111634178,1.285,2425.6,2425.5,1.49493659]
[1728111634374,1.57357,2425.6,2425.5,2.64488781]
[1728111636981,1.57357,2425.6,2425.3,2.14371212]
[1728111636982,0.28858,2425.5,2425.3,2.14371212]
[1728111637375,0.28858,2425.5,2425.4,2.64514495]
[1728111637684,0.28858,2425.5,2425.4,0.92005042]
[1728111637873,0.28858,2425.5,2425.4,2.64517219]
[1728111639084,1.285,2425.6,2425.4,2.64517219]
[1728111639283,0.7755,2425.8,2425.5,2.64517219]
[1728111639486,0.3952,2425.9,2425.8,0.28854]
[1728111639786,0.3952,2425.9,2425.8,3.85117219]
[1728111639787,0.68373,2425.9,2425.8,3.85117219]
[1728111641383,0.68373,2425.9,2425.8,2.70109732]
[1728111641574,0.68373,2425.9,2425.8,3.84995336]
[1728111641782,0.3952,2425.9,2425.8,4.13850984]
[1728111641974,0.8091,2426.1,2425.8,7.97235984]
[1728111642178,1.50312,2426.1,2425.9,2.93233684]
[1728111642383,1.50312,2426.1,2426.0,1.49509732]
[1728111644283,1.50312,2426.1,2426.0,0.57503743]
[1728111644484,1.50312,2426.1,2425.9,0.28853]
[1728111644684,1.50312,2426.1,2426.0,0.57373493]
[1728111645601,0.69402,2426.1,2426.0,0.57373493]
[1728111646086,0.4055,2426.1,2426.0,0.86225493]
[1728111646395,0.69401,2426.1,2426.0,0.57373493]
[1728111646596,0.4055,2426.1,2426.0,0.86225493]
[1728111647686,0.4055,2426.1,2426.0,1.77967133]
[1728111647991,0.4055,2426.1,2426.0,0.86191344]
[1728111650889,0.2885,2426.2,2426.0,0.86191344]
[1728111651090,0.686,2426.2,2426.1,0.57339344]
[1728111651288,0.28848,2426.4,2426.2,0.28849]
[1728111651500,0.28849,2426.3,2426.1,0.70441]
[1728111651688,0.28849,2426.3,2426.2,0.57297436]
[1728111651893,1.57598,2426.4,2426.2,1.68266436]
[1728111652090,1.57598,2426.4,2426.2,1.10969]
[1728111652787,1.2875,2426.4,2426.3,0.28849]
[1728111653191,1.57598,2426.4,2426.2,1.10969]
[1728111653598,0.68598,2426.4,2426.2,1.10969]
[1728111653795,0.89,2426.3,2426.2,1.10969]
[1728111659193,0.817,2426.6,2426.3,0.28849]
[1728111659393,0.4074,2426.6,2426.5,4.38626]
[1728111659591,0.69291,2427.0,2426.7,0.28843]
[1728111659792,0.69291,2427.0,2426.5,3.78009826]
[1728111659793,1.58581,2426.9,2426.6,1.09545]
[1728111659994,1.58581,2426.9,2426.7,0.28844]
[1728111659995,1.2974,2426.9,2426.7,0.28844]
[1728111660196,1.2974,2426.9,2426.6,0.807]
[1728111660395,1.2974,2426.9,2426.7,0.69913]
[1728111660595,0.4026,2427.2,2426.8,0.86040838]
[1728111660596,0.2884,2427.1,2426.8,0.86040838]
[1728111660803,0.6958,2427.1,2426.8,3.49622]
[1728111661199,0.6958,2427.1,2426.9,0.57192577]
[1728111661397,0.6958,2427.1,2426.8,3.49622]
[1728111661591,0.4074,2427.1,2426.8,3.2078]
[1728111661795,0.4074,2427.1,2426.9,0.28841]
[1728111662904,0.4074,2427.1,2426.8,3.2078]
[1728111663101,0.69579,2427.1,2426.8,3.49622]
[1728111663400,0.69579,2427.1,2426.9,0.28841]
[1728111663401,0.4074,2427.1,2426.9,0.28841]
[1728111665010,0.4074,2427.1,2426.9,0.2884]
[1728111665508,0.4074,2427.1,2426.9,0.28841]
[1728111666105,1.58579,2427.1,2426.8,3.49622]
[1728111666305,1.2974,2427.1,2426.9,0.28841]
[1728111666526,1.2974,2427.1,2426.8,3.2078]
[1728111666527,1.5858,2427.1,2426.8,3.49622]
[1728111667011,1.5858,2427.1,2426.9,0.28841]
[1728111667606,1.5858,2427.1,2426.8,3.49622]
[1728111668499,1.5858,2427.1,2426.1,0.111]
[1728111668500,0.28846,2426.6,2426.3,0.38447]
[1728111668704,0.8071,2427.2,2426.3,0.89]
[1728111668705,1.6841,2427.2,2426.3,0.89]
[1728111668911,1.6841,2427.2,2426.6,0.28845]
[1728111668912,1.7076,2426.8,2426.6,0.28845]
[1728111669205,0.3893,2426.7,2426.6,0.28845]
[1728111669804,0.3893,2426.7,2426.3,0.89]
[1728111670006,0.3893,2426.7,2426.6,0.28845]
[1728111670304,0.3893,2426.7,2426.5,0.28845]
[1728111670606,0.3893,2426.7,2426.6,0.28845]
[1728111671102,0.3893,2426.7,2426.3,0.89]
[1728111671103,0.67774,2426.7,2426.5,0.28846]
[1728111671506,0.67774,2426.7,2426.4,0.28846]
[1728111671705,0.67774,2426.7,2426.5,0.28846]
[1728111672603,0.67774,2426.7,2426.4,0.69167]
[1728111672604,0.89,2426.6,2426.4,0.69167]
[1728111672801,0.3893,2426.7,2426.3,0.28848]
[1728111673004,0.28848,2426.4,2426.2,4.29889]
[1728111673206,0.89,2426.3,2426.1,0.25434092]
[1728111673410,1.53869,2426.8,2426.2,0.2885]
[1728111673411,0.67967,2426.4,2426.2,0.2885]
[1728111673808,1.07377,2426.4,2426.2,0.2885]
[1728111674119,0.7853,2426.4,2426.3,0.28849]
[1728111675414,0.7853,2426.4,2426.2,0.28849]
[1728111676111,1.07377,2426.4,2426.2,0.28849]
[1728111677606,1.07377,2426.4,2426.1,3.2078]
[1728111677607,0.7853,2426.4,2426.3,0.28849]
[1728111678520,0.28847,2426.5,2426.3,0.28849]
[1728111678712,0.89,2426.6,2426.1,4.0978]
[1728111678919,0.89,2426.6,2426.4,0.28847]
[1728111678920,1.17845,2426.6,2426.4,0.28847]
[1728111679414,0.89,2426.6,2426.4,0.28847]
[1728111679606,0.89,2426.6,2426.2,0.2885]
[1728111679808,0.89,2426.6,2426.4,0.28846]
[1728111680211,1.17845,2426.6,2426.4,0.28846]
[1728111680414,0.89,2426.6,2426.4,0.28846]
[1728111681118,1.11685,2426.7,2426.4,0.28846]
[1728111681310,0.8284,2426.7,2426.3,0.89]
[1728111681521,0.28846,2426.6,2426.4,0.4081]
[1728111682819,0.28846,2426.6,2426.4,0.69657]
[1728111683212,2.00684,2426.7,2426.4,0.69656]
[1728111683411,2.00684,2426.7,2426.5,0.68436]
[1728111684314,2.00684,2426.7,2426.5,0.3959]
[1728111684818,0.28845,2426.6,2426.5,0.3959]
[1728111685915,2.00684,2426.7,2426.5,0.3959]
[1728111687909,0.4018,2426.6,2426.5,0.3959]
[1728111688113,0.4018,2426.6,2426.4,4.29637]
[1728111688415,0.69025,2426.6,2426.4,4.29637]
[1728111688609,1.58025,2426.6,2426.4,4.29637]
[1728111688810,1.2918,2426.6,2426.4,4.29637]
[1728111689417,1.58025,2426.6,2426.4,4.29637]
[1728111689615,1.2918,2426.6,2426.4,4.0079]
[1728111689817,1.2918,2426.6,2426.4,4.29637]
[1728111691109,1.58026,2426.6,2426.4,4.0079]
[1728111691316,1.58026,2426.6,2426.4,3.2078]
[1728111691719,0.28846,2426.5,2426.4,3.2078]
[1728111692215,1.58026,2426.6,2426.4,3.2078]
[1728111692722,0.28846,2426.5,2426.4,3.2078]
[1728111694330,0.28846,2426.5,2426.2,3.74833688]
[1728111694623,0.28846,2426.5,2426.3,0.57254002]
[1728111694819,0.28846,2426.5,2426.2,3.74833688]
[1728111695020,0.28846,2426.5,2426.3,0.57252854]
[1728111695226,0.28847,2426.5,2426.2,3.4963]
[1728111695425,0.28847,2426.5,2426.3,0.57258846]
[1728111695625,0.28847,2426.5,2426.2,3.4963]
[1728111695835,0.28847,2426.5,2426.3,0.57260664]
[1728111696128,0.28847,2426.5,2426.2,3.4963]
[1728111696318,0.28847,2426.5,2426.3,0.57261371]
[1728111696537,0.28847,2426.5,2426.2,3.4963]
[1728111696848,0.28847,2426.5,2426.3,0.5726736]
[1728111697146,0.28847,2426.5,2426.2,3.4963]
[1728111697346,0.28847,2426.5,2426.3,0.5726922]
[1728111697644,0.28847,2426.5,2426.2,3.4963]
[1728111697843,0.28847,2426.5,2426.3,0.57271221]
[1728111698145,0.28847,2426.5,2426.2,3.4963]
[1728111698347,0.28847,2426.5,2426.3,0.57274505]
[1728111698549,0.28847,2426.5,2426.2,0.2885]
[1728111698748,0.28847,2426.5,2426.3,0.57274348]
[1728111698945,0.28847,2426.5,2426.2,3.4963]
[1728111699252,0.28847,2426.5,2426.3,0.57274544]
[1728111699452,0.28847,2426.5,2426.2,3.4963]
[1728111699742,0.28847,2426.5,2426.3,0.57277523]
[1728111699942,0.28847,2426.5,2426.2,3.4963]
[1728111700145,0.28847,2426.5,2426.3,0.57277566]
[1728111700446,1.2918,2426.6,2426.2,3.2078]
[1728111700646,1.58026,2426.6,2426.3,0.86128656]
[1728111700947,1.58026,2426.6,2426.3,0.28848]
[1728111701146,0.28846,2426.5,2426.3,0.28848]
[1728111701747,0.28846,2426.5,2426.4,0.5728315]
[1728111701945,1.58026,2426.6,2426.3,0.28848]
[1728111702248,1.58026,2426.6,2426.4,0.57287013]
[1728111702545,0.28846,2426.5,2426.3,0.28848]
[1728111702950,0.28846,2426.5,2426.4,0.57287]
[1728111704038,1.2918,2426.6,2426.4,0.57287]
[1728111704239,1.58026,2426.6,2426.2,3.49629]
[1728111704440,1.58026,2426.6,2426.3,0.86138821]
[1728111704650,1.58026,2426.6,2426.4,0.57289821]
[1728111704940,1.58026,2426.6,2426.3,0.28849]
[1728111705144,1.58026,2426.6,2426.4,0.5729047]
[1728111705348,1.58026,2426.6,2426.3,0.28849]
[1728111705542,1.58026,2426.6,2426.4,0.5729272]
[1728111705846,1.58026,2426.6,2426.3,0.28849]
[1728111706049,1.58026,2426.6,2426.4,0.57290309]
[1728111706244,1.58026,2426.6,2426.3,0.28849]
[1728111706546,1.58026,2426.6,2426.4,0.57292654]
[1728111706849,1.58026,2426.6,2426.3,0.28849]
[1728111707047,1.58026,2426.6,2426.4,0.57304228]
[1728111707249,1.58026,2426.6,2426.3,0.28849]
[1728111707453,1.58026,2426.6,2426.4,0.57310926]
[1728111707641,1.58026,2426.6,2426.2,3.49629]
[1728111707838,1.58026,2426.6,2426.3,1.49021977]
[1728111708042,1.58026,2426.6,2426.2,3.49629]
[1728111708043,1.2918,2426.6,2426.4,0.57317671]
[1728111708343,1.2918,2426.6,2426.2,3.49629]
[1728111708344,0.28846,2426.5,2426.2,3.49629]
[1728111708542,0.28846,2426.5,2426.3,1.49047618]
[1728111708748,0.4018,2426.6,2426.4,0.86173007]
[1728111708958,0.4018,2426.6,2426.5,1.84236007]
[1728111709251,0.4018,2426.6,2426.5,2.13082007]
[1728111710156,3.2078,2427.1,2426.5,5.9673604]
[1728111710449,2.41081,2427.0,2426.7,0.28844]
[1728111710649,2.41081,2427.0,2426.8,0.57328967]
[1728111710854,2.41081,2427.0,2426.5,4.4769]
[1728111710855,2.41081,2427.0,2426.9,1.14651889]
[1728111711355,6.53081,2427.0,2426.9,0.57322922]
[1728111712749,2.41081,2427.0,2426.9,0.57322922]
[1728111713958,12.2424,2427.0,2426.5,0.8451]
[1728111714248,12.2424,2427.0,2426.3,1.43635894]
[1728111714249,0.28846,2426.5,2426.3,1.43635894]
[1728111714454,0.4059,2426.4,2426.3,0.70268]
[1728111714653,0.4059,2426.4,2426.3,1.6208879]
[1728111714855,0.4059,2426.4,2426.3,3.34252613]
[1728111717452,1.2959,2426.4,2426.3,2.63984613]
[1728111717659,1.2959,2426.4,2426.3,0.28849]
[1728111717956,1.2959,2426.4,2426.3,2.64055324]
[1728111718361,1.2959,2426.4,2426.3,2.92904324]
[1728111720863,1.2959,2426.4,2426.3,2.92910629]
[1728111721269,1.2959,2426.4,2426.3,0.28849]
[1728111721569,1.2959,2426.4,2426.3,2.92906873]
[1728111721752,0.4059,2426.4,2426.3,2.92906873]
[1728111723861,0.4059,2426.4,2426.3,0.28849]
[1728111724061,0.4059,2426.4,2426.3,2.92888945]
[1728111725263,1.2959,2426.4,2426.3,2.64039945]
[1728111725564,1.58437,2426.4,2426.3,2.64039945]
[1728111727066,1.2959,2426.4,2426.3,2.64039945]
[1728111727268,1.2959,2426.4,2426.3,2.92888945]
[1728111728761,1.2959,2426.4,2426.3,0.28849]
[1728111728962,1.2959,2426.4,2426.3,2.92885579]
[1728111730665,1.2959,2426.4,2426.3,2.92881336]
[1728111731163,1.2959,2426.4,2426.3,2.92876506]
[1728111732664,0.4059,2426.4,2426.3,2.92876506]
[1728111732865,0.89,2426.5,2426.4,0.28847]
[1728111733064,0.89,2426.5,2426.4,1.49232938]
[1728111733265,0.89,2426.5,2426.4,2.9286329]
[1728111733968,0.89,2426.5,2426.4,2.92848365]
[1728111736372,0.28846,2426.6,2426.4,2.92848365]
[1728111736572,0.28846,2426.6,2426.5,1.89828163]
[1728111737468,0.28846,2426.6,2426.5,0.4061]
[1728111737666,0.28846,2426.6,2426.5,1.8983068]
[1728111741370,0.28846,2426.6,2426.5,0.4061]
[1728111741672,0.28846,2426.6,2426.5,1.89833002]
[1728111742678,0.28846,2426.6,2426.5,1.49223002]
[1728111743380,4.40926,2426.6,2426.5,1.49223002]
[1728111746982,0.28846,2426.6,2426.5,1.49223002]
[1728111747475,0.28846,2426.6,2426.3,0.28848]
[1728111747684,0.89,2426.4,2426.3,0.28848]
[1728111747980,0.89,2426.4,2426.3,2.35493175]
[1728111748184,1.3042,2426.4,2426.3,2.92894594]
[1728111749978,1.3042,2426.4,2426.3,3.32414594]
[1728111750285,0.89,2426.6,2426.4,0.28847]
[1728111750484,0.89,2426.6,2426.5,1.49243719]
[1728111750780,0.89,2426.6,2426.5,1.49233481]
[1728111751372,1.17845,2426.6,2426.5,1.49233481]
[1728111753880,0.89,2426.6,2426.5,1.49235522]
[1728111754083,1.17845,2426.6,2426.5,1.49235522]
[1728111755085,0.28845,2426.6,2426.5,1.49235522]
[1728111756782,0.28845,2426.6,2426.5,2.64030503]
[1728111757184,0.28845,2426.6,2426.3,5.36577044]
[1728111757386,0.28845,2426.6,2426.4,2.06623589]
[1728111757689,0.28845,2426.6,2426.5,2.6401903]
[1728111760088,0.70314,2426.7,2426.5,2.6401903]
[1728111760295,0.70314,2426.7,2426.6,1.93910883]
[1728111760486,0.70314,2426.7,2426.6,3.43295177]
[1728111761684,1.59314,2426.7,2426.6,3.43295177]
[1728111761886,1.59314,2426.7,2426.6,1.49316404]
[1728111763786,1.59314,2426.7,2426.4,0.3993]
[1728111763989,1.59314,2426.7,2426.5,2.64203324]
[1728111764190,1.59314,2426.7,2426.6,1.49332833]
[1728111764987,1.3047,2426.7,2426.6,1.49332833]
[1728111767190,1.59314,2426.7,2426.6,1.49332833]
[1728111767987,1.3047,2426.7,2426.6,1.49332833]
[1728111769099,1.3047,2426.7,2426.6,2.6419699]
[1728111769290,1.59314,2426.7,2426.6,2.6419699]
[1728111769493,1.59314,2426.7,2426.6,1.49332833]
[1728111769694,1.3047,2426.7,2426.6,1.49332833]
[1728111770089,1.59314,2426.7,2426.6,1.49332833]
[1728111770292,1.3047,2426.7,2426.6,1.49319747]
[1728111770689,1.59314,2426.7,2426.5,1.12966]
[1728111770988,1.59314,2426.7,2426.6,1.49320207]
[1728111771188,1.3047,2426.7,2426.6,1.49320207]
[1728111772497,1.59314,2426.7,2426.6,1.49320207]
[1728111774795,1.3047,2426.7,2426.6,1.49320207]
[1728111776899,1.3047,2426.7,2426.5,1.12966]
[1728111777096,1.3047,2426.7,2426.6,1.4932584]
[1728111779697,1.3047,2426.7,2426.6,1.7817084]
[1728111779902,1.3047,2426.7,2426.6,2.93038596]
[1728111780403,0.4147,2426.7,2426.6,2.93038134]
[1728111780591,0.3984,2426.9,2426.7,0.28843]
[1728111780901,3.2078,2427.1,2426.7,0.28843]
[1728111780902,0.8111,2427.1,2426.8,1.78150042]
[1728111781206,0.3984,2427.2,2427.0,0.2884]
[1728111781400,0.3984,2427.2,2427.1,1.49307042]
[1728111781601,0.68678,2427.2,2427.1,1.49307042]
[1728111782201,0.3984,2427.2,2427.1,1.49307042]
[1728111782903,0.68678,2427.2,2427.1,1.49307042]
[1728111783602,0.68678,2427.2,2427.1,0.57425785]
[1728111785902,0.3984,2427.2,2426.9,0.8226]
[1728111786196,1.6014,2427.1,2427.0,0.57310409]
[1728111786905,1.313,2427.1,2427.0,0.57310409]
[1728111788200,1.60139,2427.1,2427.0,0.57310409]
[1728111788504,1.313,2427.1,2427.0,0.57310409]
[1728111788999,1.313,2427.1,2426.9,1.11101]
[1728111789201,1.313,2427.1,2427.0,0.57286074]
[1728111789397,1.60139,2427.1,2427.0,0.57286074]
[1728111789604,3.2078,2427.5,2427.0,0.57286074]
[1728111789801,1.3016,2427.4,2427.2,0.28837]
[1728111790011,1.3016,2427.4,2427.2,1.09117]
[1728111790314,0.8053,2427.6,2427.3,0.57251274]
[1728111790503,0.8053,2427.6,2427.4,1.26343759]
[1728111790504,0.4026,2427.6,2427.4,1.26343759]
[1728111790708,0.4026,2427.6,2427.4,0.69095]
[1728111790709,0.69093,2427.6,2427.4,0.69095]
[1728111791211,0.69093,2427.6,2427.4,0.4026]
[1728111791709,0.4116,2427.5,2427.4,0.4026]
[1728111791912,0.4116,2427.5,2427.4,0.97488714]
[1728111792205,0.4116,2427.5,2427.4,0.4026]
[1728111793105,0.69994,2427.5,2427.4,0.4026]
[1728111794308,0.69994,2427.5,2427.2,0.8028]
[1728111794603,1.17837,2427.3,2427.2,0.8028]
[1728111794803,0.28839,2427.2,2427.0,3.6135]
[1728111795005,1.17839,2427.1,2427.0,3.2078]
[1728111795213,1.56619,2427.1,2427.0,3.77985449]
[1728111795404,1.56619,2427.1,2427.0,3.2078]
[1728111795811,1.2778,2427.1,2427.0,3.2078]
[1728111796407,1.56619,2427.1,2427.0,3.2078]
[1728111796607,1.56619,2427.1,2426.6,0.096]
[1728111796608,0.28843,2426.8,2426.6,0.9183]
[1728111796913,0.89,2426.8,2426.7,0.5722612]
[1728111797207,1.17843,2426.8,2426.7,0.5722612]
[1728111797607,1.17843,2426.8,2426.6,0.8223]
[1728111797817,0.3878,2426.7,2426.6,1.11074]
[1728111798003,0.3878,2426.7,2426.6,1.39467843]
[1728111798209,0.3878,2426.7,2426.6,1.68312843]
[1728111798913,0.3878,2426.7,2426.6,1.39467843]
[1728111799211,0.3878,2426.7,2426.6,1.68312843]
[1728111799410,0.3878,2426.7,2426.6,1.39467843]
[1728111799606,0.4064,2427.0,2426.6,0.8223]
[1728111799803,1.58481,2427.0,2426.8,0.28842]
[1728111800712,1.58481,2427.0,2426.6,1.7123]
[1728111800713,1.17841,2426.9,2426.6,2.00074]
[1728111801016,1.17841,2426.9,2426.7,0.28843]
[1728111801610,0.89,2426.9,2426.7,0.28843]
[1728111802012,1.17842,2426.9,2426.7,0.28843]
[1728111802723,0.28844,2426.7,2426.6,0.8223]
[1728111802914,0.68313,2426.8,2426.6,1.3947834]
[1728111803217,0.68313,2426.8,2426.6,0.8223]
[1728111803410,0.3935,2426.7,2426.6,0.8223]
[1728111803606,0.3935,2426.7,2426.6,1.68327527]
[1728111804217,1.57194,2426.7,2426.5,3.2078]
[1728111804521,0.70655,2426.6,2426.5,3.2078]
[1728111805813,0.70655,2426.6,2426.2,3.49629]
[1728111805814,0.28847,2426.5,2426.2,3.49629]
[1728111806016,1.58907,2426.4,2426.2,3.49629]
[1728111806221,0.4064,2426.3,2426.2,3.49629]
[1728111807712,0.4064,2426.3,2426.2,3.2078]
[1728111808116,0.4064,2426.3,2426.2,3.4963]
[1728111808725,0.4064,2426.3,2426.2,3.2078]
[1728111809031,0.69489,2426.3,2426.2,3.2078]
[1728111809922,0.69489,2426.3,2426.1,0.28851]
[1728111810118,0.89,2426.2,2426.1,0.28851]
[1728111810528,0.4064,2426.3,2426.2,0.2885]
[1728111811918,3.2078,2426.7,2426.2,5.0116]
[1728111812126,0.72109,2426.8,2426.5,0.89]
[1728111812127,1.49733,2426.8,2426.5,0.89]
[1728111812330,1.49733,2426.8,2426.6,1.09035]
[1728111813132,1.2089,2426.8,2426.6,0.8019]
[1728111813329,0.28844,2426.7,2426.6,0.8019]
[1728111813532,1.17844,2426.7,2426.6,0.3869]
[1728111816931,1.17844,2426.7,2426.4,1.56767]
[1728111816932,0.89,2426.7,2426.4,0.3892]
[1728111817136,0.28847,2426.4,2426.3,0.4109]
[1728111817534,0.69687,2426.4,2426.3,0.4109]
[1728111822335,0.69687,2426.4,2426.3,0.69939]
[1728111824141,0.4084,2426.4,2426.3,0.69939]
[1728111825136,5.42,2426.4,2425.9,3.2078]
[1728111825334,1.17851,2426.1,2426.0,0.86095904]
[1728111825534,1.17851,2426.1,2425.9,4.71443]
[1728111825535,0.89,2426.1,2425.9,4.71443]
[1728111825736,1.58262,2426.0,2425.9,4.0338]
[1728111826346,1.2941,2426.0,2425.5,3.2078]
[1728111826546,1.2816,2425.9,2425.6,0.57261995]
[1728111826841,0.89,2425.7,2425.5,3.2078]
[1728111827035,0.89,2425.6,2425.5,3.2078]
[1728111827233,1.2941,2425.6,2425.5,3.49638]
[1728111827843,1.2941,2425.6,2425.5,3.2078]
[1728111829147,1.2941,2425.6,2425.5,3.49638]
[1728111829350,1.2941,2425.6,2425.5,3.2078]
[1728111829648,0.4041,2425.6,2425.5,3.2078]
[1728111831243,0.4041,2425.6,2425.5,3.49638]
[1728111831544,0.4041,2425.6,2425.5,3.2078]
[1728111832349,0.4041,2425.6,2425.4,0.28859]
[1728111832543,0.4041,2425.6,2425.4,3.49639]
[1728111833554,0.69267,2425.6,2425.4,3.49639]
[1728111833850,0.4041,2425.6,2425.4,3.49639]
[1728111834449,0.69267,2425.6,2425.4,3.2078]
[1728111835046,0.4041,2425.6,2425.4,3.49639]
[1728111836046,0.69267,2425.6,2425.4,3.49639]
[1728111836256,0.4017,2425.5,2425.4,3.49639]
[1728111837554,0.4017,2425.5,2425.4,0.28859]
[1728111838247,0.4017,2425.5,2425.4,3.49639]
[1728111839548,2.3317,2425.5,2425.4,0.28859]
[1728111839750,2.62028,2425.5,2425.2,0.8042]
[1728111839956,0.2886,2425.4,2425.2,0.387]
[1728111840354,0.3977,2425.3,2425.2,0.387]
[1728111840657,2.3277,2425.3,2425.2,0.28862]
[1728111840852,2.61631,2425.3,2425.1,0.28862]
[1728111841056,2.61631,2425.3,2425.0,3.89203]
[1728111841057,0.4144,2425.2,2425.0,3.89203]
[1728111841355,2.3444,2425.2,2425.0,3.49643]
[1728111841555,2.63302,2425.2,2425.0,3.2078]
[1728111841759,0.4102,2425.1,2425.0,3.2078]
[1728111841954,0.69883,2425.1,2425.0,3.2078]
[1728111843457,4.82283,2425.1,2425.0,3.2078]
[1728111848761,4.5342,2425.1,2425.0,3.2078]
[1728111848956,4.82283,2425.1,2425.0,3.2078]
[1728111851161,4.5342,2425.1,2425.0,3.2078]
[1728111851357,4.82283,2425.1,2425.0,3.2078]
[1728111851562,5.71283,2425.1,2425.0,3.2078]
[1728111852965,0.72161,2425.0,2424.6,0.096]
[1728111853159,0.89,2424.7,2424.5,1.0876]
[1728111855360,0.2887,2424.6,2424.3,3.6318]
[1728111855661,0.89,2424.4,2424.3,4.71942]
[1728111856166,0.89,2424.4,2424.3,4.4307]
[1728111856762,0.89,2424.4,2424.3,4.71942]
[1728111857667,0.89,2424.4,2424.3,4.4307]
[1728111858068,0.89,2424.4,2424.3,4.71942]
[1728111858468,0.89,2424.4,2424.3,4.4307]
[1728111861760,1.17871,2424.4,2424.3,4.4307]
[1728111862272,0.89,2424.4,2424.3,4.4307]
[1728111862766,1.2836,2424.4,2424.3,4.4307]
[1728111864959,0.89,2424.4,2424.3,4.4307]
[1728111866071,1.17871,2424.4,2424.3,4.4307]
[1728111867465,1.17871,2424.4,2424.3,3.6169]
[1728111867674,1.17871,2424.4,2424.3,0.4091]
[1728111869169,0.7948,2424.6,2424.3,0.4091]
[1728111869472,1.0835,2424.6,2424.4,0.4175]
[1728111869767,1.0835,2424.6,2424.4,0.8023]
[1728111870576,1.1787,2424.5,2424.4,0.8023]
[1728111879772,0.28871,2424.4,2424.3,0.4091]
[1728111879968,0.67421,2424.4,2424.3,0.4091]
[1728111885482,3.92952,2424.7,2424.3,0.4091]
[1728111885483,3.2078,2424.7,2424.3,0.4091]
[1728111885670,0.89,2424.6,2424.4,0.86339425]
[1728111885875,0.89,2424.6,2424.5,0.57468425]
[1728111886176,0.89,2424.6,2424.5,0.3997]
[1728111886381,0.89,2424.6,2424.5,0.97432685]
[1728111886686,1.17869,2424.6,2424.5,0.97432685]
[1728111888874,1.17869,2424.6,2424.5,0.57462685]
[1728111889277,1.17869,2424.6,2424.3,0.4091]
[1728111889476,0.89,2424.4,2424.3,0.69782]
[1728111889676,0.89,2424.4,2424.3,1.617983]
[1728111889876,0.89,2424.4,2424.3,2.19309214]
[1728111892284,0.89,2424.4,2424.3,3.05304064]
[1728111892583,0.89,2424.4,2424.3,0.4091]
[1728111892979,0.89,2424.4,2424.3,2.47676587]
[1728111893177,0.89,2424.4,2424.3,3.3398375]
[1728111894878,1.17871,2424.4,2424.3,3.0511175]
[1728111895077,0.89,2424.4,2424.3,3.0511175]
[1728111895485,1.17871,2424.4,2424.3,3.0511175]
[1728111895880,0.89,2424.4,2424.3,3.0511175]
[1728111896389,1.17871,2424.4,2424.3,2.6420175]
[1728111896789,1.17871,2424.4,2424.3,1.49331424]
[1728111897290,1.96771,2424.4,2424.3,1.49331424]
[1728111899096,1.96771,2424.4,2424.2,0.8018]
[1728111899097,1.679,2424.4,2424.2,0.8018]
[1728111899291,0.28872,2424.3,2424.2,0.8018]
[1728111899591,0.28872,2424.3,2424.2,1.71935248]
[1728111899784,0.28872,2424.3,2424.2,2.28994664]
[1728111900293,0.28872,2424.3,2424.2,1.48814664]
[1728111901097,0.28872,2424.3,2424.2,1.48375186]
[1728111901990,0.28872,2424.3,2424.2,1.483535]
[1728111904791,0.28872,2424.3,2424.2,1.48318721]
[1728111907995,0.28874,2424.2,2424.1,3.2078]
[1728111908199,1.2764,2424.2,2424.1,6.12070876]
[1728111908503,1.56514,2424.2,2424.1,4.6910369]
[1728111908800,1.2764,2424.2,2424.1,4.9797869]
[1728111909201,1.56514,2424.2,2424.1,4.9797869]
[1728111909503,1.2764,2424.2,2424.1,4.6910369]
[1728111910491,1.56514,2424.2,2424.1,4.6910369]
[1728111910803,1.2764,2424.2,2424.1,4.9797869]
[1728111910999,1.2764,2424.2,2424.1,4.6910369]
[1728111911401,1.56514,2424.2,2424.1,4.6910369]
[1728111911891,1.56514,2424.2,2424.1,4.69081396]
[1728111912092,1.2764,2424.2,2424.1,4.69081396]
[1728111912707,1.56514,2424.2,2424.1,4.69081396]
[1728111913198,1.56514,2424.2,2424.1,4.69098836]
[1728111913405,1.56514,2424.2,2424.0,1.51186]
[1728111913699,1.56514,2424.2,2424.1,0.91267842]
[1728111913904,1.56514,2424.2,2424.1,1.48310243]
[1728111914304,1.56514,2424.2,2424.0,1.51186]
[1728111915109,1.56514,2424.2,2424.1,1.48309649]
[1728111915498,1.2764,2424.2,2424.1,1.48309649]
[1728111915693,0.28873,2424.3,2424.2,0.28873]
[1728111915694,0.89,2424.3,2424.2,0.28873]
[1728111915999,0.89,2424.3,2424.2,1.77182649]
[1728111916202,0.89,2424.3,2424.2,1.48283241]
[1728111917000,1.17872,2424.3,2424.2,1.48283241]
[1728111918606,5.30352,2424.3,2424.2,0.57032016]
[1728111918903,5.30352,2424.3,2423.8,1.07139044]
[1728111918904,5.0148,2424.3,2423.8,0.4125]
[1728111919110,0.89,2424.0,2423.9,2.31732148]